bitfinex/quotes_ETHUSD_20250715
["timestamp","ask_amount","ask_price","bid_price","bid_amount"]
[1752621012391,3.2456,3140.8,3140.3,0.1592]
[1752621012691,3.2456,3140.8,3140.6,3.18403975]
[1752621012846,3.2456,3140.8,3140.7,3.18400356]
[1752621013242,2.412,3140.8,3140.7,3.18400356]
[1752621013782,2.412,3140.8,3140.7,3.34240356]
[1752621017349,2.412,3140.8,3140.7,4.61350356]
[1752621017550,2.412,3140.8,3140.7,5.96036433]
[1752621018051,2.412,3140.8,3140.7,5.99220436]
[1752621018261,2.412,3140.8,3140.7,0.1584]
[1752621018464,2.412,3140.8,3139.9,0.4388]
[1752621018465,5.98990219,3140.8,3139.9,0.4388]
[1752621018807,0.808,3140.2,3139.8,0.1592]
[1752621018950,0.9672,3140.2,3139.3,0.001]
[1752621019151,3.18504405,3139.7,3139.5,0.1592]
[1752621019364,0.9672,3140.2,3139.5,0.1592]
[1752621019365,0.1592,3140.0,3139.5,0.1592]
[1752621019903,3.34393104,3140.0,3139.5,0.1592]
[1752621020102,3.1849823,3139.8,3139.5,0.1592]
[1752621020301,3.1849823,3139.8,3139.3,0.001]
[1752621020302,3.18532203,3139.4,3139.3,0.001]
[1752621020499,0.1592,3139.7,3139.3,0.001]
[1752621020804,4.04312203,3139.4,3139.3,0.001]
[1752621021303,4.43712203,3139.4,3139.3,0.001]
[1752621022473,10.10112203,3139.4,3139.3,0.001]
[1752621022673,3.1854235,3139.3,3138.0,0.001]
[1752621022980,3.97947122,3138.6,3138.3,0.1592]
[1752621023180,3.18626136,3138.5,3138.3,0.1592]
[1752621023371,0.7933,3138.6,3138.3,0.1592]
[1752621023571,3.97944176,3138.6,3138.3,0.1592]
[1752621024129,3.18627686,3138.5,3138.3,0.1592]
[1752621024269,0.394,3138.5,3138.0,0.001]
[1752621024472,3.34584159,3138.1,3138.0,0.001]
[1752621025194,0.1592,3138.1,3138.0,0.001]
[1752621025609,0.7933,3138.6,3138.0,0.001]
[1752621025810,0.9525,3138.6,3138.0,3.78571782]
[1752621026030,0.7933,3138.6,3138.0,1.13705678]
[1752621026321,0.1592,3138.9,3138.4,0.1592]
[1752621026532,5.661,3138.8,3138.4,0.1592]
[1752621026834,3.18603243,3138.7,3138.4,0.1592]
[1752621027104,5.661,3138.8,3138.4,0.1592]
[1752621027105,8.84697308,3138.8,3138.4,0.1592]
[1752621027611,3.34505433,3138.9,3138.4,0.1592]
[1752621027806,5.66,3138.7,3138.4,0.1592]
[1752621028017,3.1859443,3138.8,3138.4,0.1592]
[1752621028198,8.84605758,3138.7,3138.4,0.1592]
[1752621028380,0.8649,3138.5,3138.0,0.001]
[1752621028581,3.34564617,3138.3,3138.0,0.001]
[1752621028910,5.659,3138.2,3138.0,0.001]
[1752621029273,30.0,3138.1,3138.0,0.001]
[1752621029477,40.64211486,3138.1,3138.0,0.001]
[1752621029897,16.30011486,3138.1,3138.0,0.001]
[1752621030291,46.30011486,3138.1,3138.0,1e-08]
[1752621030485,46.85011486,3138.1,3138.0,1e-08]
[1752621031609,3.18806388,3136.7,3136.6,0.001]
[1752621031817,5.656,3136.7,3136.6,0.001]
[1752621032329,8.84406388,3136.7,3136.6,0.001]
[1752621032617,9.23806388,3136.7,3136.6,0.001]
[1752621033222,10.10296388,3136.7,3136.6,0.001]
[1752621033425,10.10296388,3136.7,3135.2,0.03189589]
[1752621033426,0.55,3136.4,3133.5,10.32170676]
[1752621033627,3.1901997,3134.6,3132.9,0.8381]
[1752621033785,38.5169,3134.5,3132.9,0.8381]
[1752621033985,3.19093343,3133.9,3132.9,0.8381]
[1752621034188,3.19112379,3133.7,3132.9,0.8381]
[1752621034392,3.1911283,3133.7,3132.9,0.8381]
[1752621034592,3.19140255,3133.5,3132.9,0.8381]
[1752621034792,5.655,3133.4,3132.9,0.8381]
[1752621035129,3.19028763,3134.6,3132.9,0.8381]
[1752621035130,5.657,3133.3,3133.0,0.4388]
[1752621035302,3.19189979,3133.0,3132.8,0.001]
[1752621035626,3.19193079,3132.9,3132.8,0.001]
[1752621035846,8.84893079,3132.9,3132.8,0.001]
[1752621035992,8.84793079,3132.9,3132.8,0.001]
[1752621036502,10.05190525,3132.9,3132.8,0.001]
[1752621036730,8.84793079,3132.9,3132.8,0.001]
[1752621037047,0.8649,3133.6,3132.8,0.4398]
[1752621037192,5.655,3133.5,3132.8,1.246]
[1752621037392,3.1916037,3133.3,3132.8,1.246]
[1752621037615,5.655,3133.2,3132.8,1.246]
[1752621037816,0.16668806,3133.9,3133.0,3.19174651]
[1752621038030,3.19124253,3133.6,3132.9,0.4388]
[1752621038430,3.19124253,3133.6,3132.9,0.88579187]
[1752621038736,3.19124253,3133.6,3132.9,4.07770333]
[1752621039404,3.19124253,3133.6,3133.2,0.1592]
[1752621039929,3.1914575,3133.4,3133.2,0.1592]
[1752621040226,3.19193079,3132.9,3132.8,0.001]
[1752621040431,8.84593079,3132.9,3132.8,0.001]
[1752621040729,4.01951822,3133.1,3132.8,0.001]
[1752621040730,3.19189871,3133.0,3132.8,0.001]
[1752621041028,5.654,3132.9,3132.8,0.001]
[1752621041231,8.84493079,3132.9,3132.8,0.001]
[1752621041996,5.655,3132.9,3132.8,0.001]
[1752621042231,5.654,3132.9,3132.8,0.1602]
[1752621042531,0.16668806,3133.9,3132.8,0.1602]
[1752621042733,0.1592,3133.6,3133.1,3.19170892]
[1752621043042,5.653,3133.5,3133.1,3.35090892]
[1752621043229,3.1914842,3133.4,3132.8,3.19299196]
[1752621043437,3.19154113,3133.3,3132.9,0.1592]
[1752621043638,0.1592,3133.1,3132.8,0.001]
[1752621043798,3.19193079,3132.9,3132.8,0.001]
[1752621044333,3.58593079,3132.9,3132.8,0.001]
[1752621044535,0.9978,3133.0,3132.8,0.001]
[1752621044839,8.84393079,3132.9,3132.8,0.001]
[1752621045009,10.54128595,3132.9,3132.8,0.001]
[1752621045210,40.54128595,3132.9,3132.8,0.001]
[1752621045605,44.37988595,3132.9,3132.8,0.001]
[1752621045801,44.37988595,3132.9,3131.5,0.001]
[1752621045802,4.0316228,3131.9,3131.5,0.001]
[1752621046110,5.651,3131.8,3131.5,0.001]
[1752621046314,3.19315387,3131.7,3131.5,0.001]
[1752621046510,3.35245584,3131.6,3131.5,0.001]
[1752621046824,3.35245584,3131.6,3131.5,3.19435781]
[1752621046825,0.1592,3131.6,3131.5,3.19435781]
[1752621046999,0.1592,3132.6,3132.5,3.19233838]
[1752621047202,0.1592,3132.9,3132.7,3.19213458]
[1752621047497,1.74039,3133.3,3132.4,0.1592]
[1752621047713,5.8102,3133.2,3132.8,3.19197411]
[1752621047913,5.8102,3133.2,3132.7,3.19209102]
[1752621048201,5.8102,3133.2,3132.7,3.19211496]
[1752621050754,0.1592,3134.9,3134.4,0.4348]
[1752621050952,0.1592,3134.9,3134.6,3.1901997]
[1752621051159,0.8264,3135.7,3135.0,3.18971815]
[1752621051330,0.1592,3135.4,3135.0,3.18971815]
[1752621051539,0.8264,3135.7,3135.0,3.62457242]
[1752621051735,5.8072,3135.6,3135.2,3.18951328]
[1752621052065,0.1592,3135.6,3135.1,3.34887942]
[1752621052381,5.648,3135.5,3135.1,3.34887942]
[1752621052529,5.648,3135.5,3135.2,3.18958239]
[1752621052734,5.648,3135.5,3135.1,3.34887686]
[1752621053532,8.83734949,3135.5,3135.1,0.1592]
[1752621053734,5.648,3135.5,3135.1,0.1592]
[1752621055062,8.83732619,3135.5,3135.1,0.1592]
[1752621055265,5.648,3135.5,3135.1,0.1592]
[1752621055481,0.8366,3136.5,3135.2,0.4348]
[1752621055681,0.8366,3136.5,3135.7,3.18901637]
[1752621055682,0.1592,3136.1,3135.7,3.18901637]
[1752621055979,5.643,3136.4,3136.0,0.1592]
[1752621056184,0.9958,3136.5,3136.0,0.1592]
[1752621056486,0.9958,3136.5,3135.5,0.4348]
[1752621056487,3.18874591,3136.1,3135.5,0.4348]
[1752621056648,0.1592,3136.1,3135.6,3.34834788]
[1752621057455,5.642,3136.4,3135.7,0.4348]
[1752621057652,0.1666136,3136.7,3136.0,0.1592]
[1752621057852,5.8002,3136.6,3136.1,0.1592]
[1752621058054,8.98842296,3136.6,3136.1,0.1592]
[1752621058252,0.1592,3136.6,3136.1,0.1592]
[1752621058490,5.64,3136.5,3136.1,0.1592]
[1752621058868,3.34744596,3136.6,3136.1,0.1592]
[1752621059270,5.639,3136.5,3136.1,0.1592]
[1752621059491,5.93329606,3136.5,3136.1,0.1592]
[1752621059879,3.18837241,3136.4,3136.1,0.1592]
[1752621060195,0.1592,3136.3,3135.7,0.1592]
[1752621060357,3.1889489,3135.9,3135.2,0.4348]
[1752621060557,3.1889489,3135.9,3135.5,0.1592]
[1752621060776,3.18903632,3135.8,3135.5,0.1592]
[1752621060978,0.29514586,3135.8,3134.9,0.4348]
[1752621061174,3.18937287,3135.5,3135.1,0.1592]
[1752621061561,0.29514586,3135.5,3135.1,0.1592]
[1752621061812,3.1893275,3135.5,3135.1,0.1592]
[1752621062110,0.1592,3135.6,3135.2,0.4348]
[1752621062267,5.637,3135.5,3135.4,0.1592]
[1752621062464,5.636,3135.7,3135.4,0.1592]
[1752621062764,3.18926,3135.6,3135.2,0.1592]
[1752621062990,9.70760915,3135.7,3135.2,0.1592]
[1752621063779,3.18923016,3135.6,3135.2,0.1592]
[1752621064301,6.51849601,3135.7,3135.2,0.1592]
[1752621064302,3.18928964,3135.5,3135.2,0.1592]
[1752621064671,6.51849601,3135.7,3135.2,0.1592]
[1752621065079,3.18926952,3135.6,3135.2,0.1592]
[1752621065405,3.18918786,3135.6,3135.2,0.1592]
[1752621065596,3.18974924,3135.1,3134.6,0.4348]
[1752621065791,3.18974924,3135.1,3134.9,0.1592]
[1752621065988,3.18979266,3135.0,3134.9,0.1592]
[1752621066192,3.18979266,3135.0,3134.4,0.8385]
[1752621066398,0.31897927,3134.9,3134.0,0.8385]
[1752621066598,3.19015216,3134.7,3134.1,3.19066599]
[1752621067004,5.632,3134.8,3134.2,3.19053621]
[1752621067172,5.632,3134.8,3134.2,3.19052266]
[1752621067521,8.82200068,3134.8,3134.2,3.19052266]
[1752621067707,5.632,3134.8,3134.0,0.8385]
[1752621067881,0.5632,3134.7,3134.0,0.8704081]
[1752621068084,3.19016029,3134.7,3134.1,3.19070865]
[1752621068266,0.394,3135.7,3134.2,0.4348]
[1752621068620,0.829,3135.4,3134.3,3.19050484]
[1752621068786,0.829,3135.4,3134.9,3.18983179]
[1752621068970,5.63,3135.3,3135.0,3.18974695]
[1752621069390,4.01800875,3135.8,3135.2,3.18955471]
[1752621069584,0.002,3135.9,3135.7,3.18899915]
[1752621069927,0.002,3135.9,3135.5,3.18919901]
[1752621069928,0.002,3135.9,3135.5,0.8413]
[1752621070126,0.002,3135.9,3135.4,3.18937711]
[1752621070127,0.002,3135.9,3135.4,3.18933005]
[1752621070414,0.002,3135.9,3135.6,3.18917135]
[1752621071119,0.002,3135.9,3135.8,3.18897888]
[1752621071618,0.002,3135.9,3135.8,4.46507888]
[1752621072116,0.002,3135.9,3135.8,5.55259216]
[1752621072417,0.002,3135.9,3135.8,4.46507888]
[1752621072723,0.002,3135.9,3135.8,0.4348]
[1752621073019,5.628,3135.9,3135.2,0.4348]
[1752621073167,3.18914141,3135.7,3135.0,3.18971917]
[1752621073364,0.31891414,3135.6,3135.0,3.18971917]
[1752621073607,0.002,3135.9,3135.0,0.03189792]
[1752621073796,0.002,3135.9,3135.5,3.18921629]
[1752621074272,0.002,3135.9,3135.6,3.18913399]
[1752621074474,0.002,3135.9,3135.5,3.189243]
[1752621074699,0.002,3135.9,3135.3,3.18943947]
[1752621074874,3.19087744,3135.9,3135.3,3.18943947]
[1752621075074,1.20245855,3135.9,3135.1,0.4348]
[1752621075402,3.18931544,3135.5,3134.9,3.18983461]
[1752621075603,5.624,3135.5,3134.5,0.8413]
[1752621075802,4.01839519,3135.4,3134.5,0.8413]
[1752621076010,4.01839519,3135.4,3134.6,3.1901997]
[1752621076193,3.18959632,3135.2,3134.6,3.1901997]
[1752621076602,0.1592,3135.2,3134.7,3.34923751]
[1752621076786,0.1592,3135.2,3134.8,3.66177988]
[1752621076987,0.829,3135.8,3134.9,3.18989441]
[1752621077186,3.18938981,3135.4,3134.9,0.1592]
[1752621077573,3.34851778,3135.5,3134.9,3.34906874]
[1752621077809,6.35832,3135.5,3135.0,3.18977723]
[1752621077983,5.621,3135.7,3135.1,0.4718]
[1752621078199,3.18919517,3135.6,3135.2,0.1592]
[1752621078942,8.96932615,3135.7,3135.2,0.1592]
[1752621079088,0.1592,3135.7,3135.2,3.34874407]
[1752621079292,5.62,3135.6,3135.3,3.18939792]
[1752621079686,0.1592,3135.7,3135.3,3.66128744]
[1752621079886,0.002,3135.9,3135.5,0.1592]
[1752621079887,8.8108929,3135.9,3135.5,0.1592]
[1752621080083,5.622,3135.9,3135.5,0.1592]
[1752621080308,0.002,3135.9,3135.5,0.1592]
[1752621080510,0.002,3135.9,3135.6,0.4718]
[1752621080725,0.002,3135.9,3135.8,0.1592]
[1752621081629,0.002,3135.9,3135.5,3.18927592]
[1752621081833,0.32107298,3135.9,3135.6,0.1592]
[1752621082037,0.002,3135.9,3135.6,0.1592]
[1752621082206,0.002,3135.9,3135.6,3.82010978]
[1752621082405,0.002,3135.9,3135.7,3.18907936]
[1752621083020,0.002,3135.9,3135.6,0.1592]
[1752621083545,0.002,3135.9,3135.1,1.3048]
[1752621083731,0.1612,3135.9,3135.4,0.1592]
[1752621084249,0.73892,3135.9,3135.4,0.1592]
[1752621084547,3.92784616,3135.9,3135.4,0.1592]
[1752621085309,3.18899185,3135.8,3135.4,0.1592]
[1752621085521,3.18902554,3135.8,3135.4,0.1592]
[1752621085845,0.03190013,3135.7,3135.3,3.34867178]
[1752621086145,0.03190013,3135.7,3135.4,3.18933022]
[1752621086348,0.03190013,3135.7,3135.3,3.34864402]
[1752621086846,0.03190013,3135.8,3135.3,3.34865634]
[1752621087049,3.18912017,3135.7,3135.3,0.1592]
[1752621087206,0.03190013,3135.6,3135.3,0.1592]
[1752621087543,0.74678235,3135.7,3135.3,0.1592]
[1752621087728,3.18918229,3135.6,3135.3,0.1592]
[1752621087933,3.18918229,3135.6,3135.2,0.1592]
[1752621087934,3.22125575,3135.5,3135.2,0.1592]
[1752621088335,0.76035216,3135.5,3135.2,0.1592]
[1752621088533,0.4544,3135.4,3134.6,3.19013724]
[1752621088742,3.22139869,3135.3,3134.7,3.19009793]
[1752621089047,3.18961149,3135.2,3134.6,3.1901689]
[1752621089346,0.03190013,3135.1,3134.7,3.19009565]
[1752621089536,0.03190013,3135.3,3134.7,3.19003335]
[1752621089732,0.03190013,3135.3,3134.6,3.19010898]
[1752621089940,0.03190013,3135.8,3135.4,3.18937037]
[1752621090120,0.03190013,3135.8,3135.5,3.18926291]
[1752621090327,0.002,3135.9,3135.8,3.18897888]
[1752621090517,0.002,3135.9,3135.7,3.18903595]
[1752621091238,0.002,3135.9,3135.7,3.18899103]
[1752621091439,0.002,3135.9,3135.7,3.18902883]
[1752621091821,0.002,3135.9,3135.8,3.18897888]
[1752621092422,0.002,3135.9,3135.8,3.66077888]
[1752621092937,0.002,3135.9,3135.8,3.69266866]
[1752621093145,0.002,3135.9,3135.4,0.4718]
[1752621093368,0.002,3135.9,3135.2,0.8269]
[1752621093659,0.002,3135.9,3135.5,3.18926019]
[1752621094145,0.002,3135.9,3135.0,0.4718]
[1752621094346,0.32427525,3135.9,3135.3,3.18938834]
[1752621094549,0.03190013,3135.8,3135.3,3.18938834]
[1752621095056,0.4544,3135.7,3134.8,0.8741]
[1752621095259,0.03190013,3135.6,3135.2,3.18958246]
[1752621095424,0.03190013,3135.6,3135.2,3.66136622]
[1752621095753,0.03190013,3135.6,3134.9,3.18989441]
[1752621095754,0.03190013,3135.6,3135.3,3.66125918]
[1752621096051,0.03190013,3135.6,3135.4,3.1893835]
[1752621096217,0.03190013,3135.7,3135.3,3.6612319]
[1752621096417,0.03190013,3135.7,3135.3,3.1894319]
[1752621096849,0.03190013,3135.7,3135.3,0.4718]
[1752621097051,0.03190013,3135.7,3135.4,3.18938572]
[1752621097230,0.03390013,3135.9,3135.4,3.18938572]
[1752621097431,0.40160939,3135.9,3135.3,0.4718]
[1752621097631,0.40160939,3135.9,3135.5,3.18924541]
[1752621098449,0.40160939,3135.9,3135.5,0.1592]
[1752621098849,3.59048734,3135.9,3135.5,0.1592]
[1752621099052,0.40160939,3135.9,3135.5,0.1592]
[1752621099253,3.18918229,3135.6,3134.9,3.18986617]
[1752621099466,0.4544,3135.8,3134.8,6.9479]
[1752621099467,3.54010687,3135.5,3135.2,0.1592]
[1752621099642,3.54010687,3135.5,3134.9,3.18979909]
[1752621099643,1.0228,3135.4,3134.9,3.18979909]
[1752621099950,0.03190013,3135.6,3135.3,3.18948744]
[1752621100139,0.19110013,3135.8,3135.3,0.4718]
[1752621100341,0.59655096,3135.8,3135.5,3.18927759]
[1752621100766,0.19110013,3135.8,3135.5,3.18927759]
[1752621100967,0.19110013,3135.8,3135.4,3.18934046]
[1752621101266,0.4544,3135.7,3135.2,0.1592]
[1752621101475,0.4544,3135.6,3135.2,0.1592]
[1752621101631,0.48630013,3135.5,3134.6,6.0688]
[1752621101835,0.1592,3135.3,3134.8,3.34909943]
[1752621102043,3.22155005,3135.2,3134.8,0.1592]
[1752621102278,3.22155005,3135.2,3134.3,0.8281]
[1752621102279,3.64413179,3135.1,3134.5,3.19025865]
[1752621102479,0.03190013,3135.0,3134.5,0.1592]
[1752621102679,3.1901628,3134.7,3134.1,3.19070452]
[1752621102843,0.03190013,3134.6,3134.2,0.1592]
[1752621103038,3.67653626,3134.6,3134.2,0.1592]
[1752621103276,1.2939,3134.5,3134.2,0.1592]
[1752621103570,3.19050505,3134.3,3133.3,6.0668]
[1752621103736,0.03190013,3134.2,3133.8,0.1592]
[1752621104135,3.22251282,3134.2,3133.8,0.1592]
[1752621104373,3.34997173,3134.1,3133.5,3.35044308]
[1752621104672,0.03190013,3134.0,3133.5,3.35044308]
[1752621104980,3.22272315,3134.0,3133.5,0.1592]
[1752621105271,6.1802,3133.9,3133.3,0.1592]
[1752621105469,3.22297559,3133.8,3133.3,0.1592]
[1752621105909,1.4267,3133.7,3133.3,3.19151585]
[1752621106079,0.03190013,3133.6,3133.1,3.3509072]
[1752621106278,0.1592,3133.4,3132.9,3.35113079]
[1752621106490,0.03190013,3133.3,3132.9,0.1592]
[1752621106695,0.03190013,3133.3,3133.0,3.19182891]
[1752621106892,0.03190013,3133.3,3132.9,0.1592]
[1752621107116,0.03190013,3133.3,3132.9,3.3510518]
[1752621107296,0.03190013,3133.3,3133.2,3.19162517]
[1752621107497,0.03190013,3133.5,3133.2,3.19158216]
[1752621108007,0.03190013,3133.5,3133.1,0.1592]
[1752621108399,0.428,3133.4,3132.8,0.001]
[1752621108588,0.1592,3133.1,3132.8,0.001]
[1752621108914,0.03190013,3133.0,3132.8,0.001]
[1752621109377,0.428,3133.4,3132.8,0.001]
[1752621109378,0.03190013,3133.3,3133.0,3.19182891]
[1752621109588,0.19110013,3133.3,3133.0,3.19182891]
[1752621109792,0.8395,3133.7,3133.0,3.19182891]
[1752621109793,0.03190013,3133.6,3133.2,0.1592]
[1752621109990,0.14110013,3133.8,3133.4,3.19142145]
[1752621110192,5.589,3133.9,3133.5,3.19125483]
[1752621110392,5.589,3133.9,3133.4,3.35057412]
[1752621110619,5.589,3133.9,3133.5,3.19130753]
[1752621110789,5.589,3133.9,3133.6,3.1912088]
[1752621110990,5.589,3133.9,3133.5,3.19130271]
[1752621111634,5.589,3133.9,3133.4,3.35057354]
[1752621111799,5.589,3133.9,3133.5,3.19131253]
[1752621112001,0.1592,3134.0,3133.5,3.19131253]
[1752621112190,5.587,3133.9,3133.4,0.1592]
[1752621112396,6.015,3133.9,3133.4,3.35060477]
[1752621112594,0.428,3133.9,3133.5,3.19131659]
[1752621112924,0.428,3133.9,3133.4,0.1592]
[1752621112925,5.587,3133.9,3133.4,0.1592]
[1752621113126,0.1592,3133.5,3133.0,3.35094929]
[1752621113300,0.1592,3133.5,3133.2,3.1915368]
[1752621113946,0.1592,3133.5,3133.1,3.19169099]
[1752621114146,0.1592,3133.5,3133.1,0.4549]
[1752621114293,0.1592,3133.5,3133.0,0.1592]
[1752621114294,0.1592,3133.5,3133.2,0.4549]
[1752621114493,0.831,3134.1,3133.3,0.4549]
[1752621114790,5.7442,3134.0,3133.5,3.19121777]
[1752621115035,5.7442,3134.0,3133.4,0.1592]
[1752621115036,0.1592,3134.0,3133.4,0.1592]
[1752621115247,5.7432,3134.0,3133.6,3.19115481]
[1752621115397,5.7432,3134.0,3133.6,3.19120901]
[1752621115750,5.7432,3134.0,3133.4,3.35054049]
[1752621115751,5.7432,3134.0,3133.5,3.19127237]
[1752621116136,5.7432,3134.0,3133.4,0.1592]
[1752621116296,5.7432,3134.0,3133.6,3.19112515]
[1752621116619,5.7432,3134.0,3133.5,3.19130932]
[1752621116794,5.7412,3134.0,3133.5,3.19130932]
[1752621117337,0.1592,3134.0,3133.7,3.19110281]
[1752621117502,0.1592,3134.0,3133.6,3.19117863]
[1752621117710,5.7402,3134.0,3133.6,3.19117863]
[1752621118124,5.7402,3134.0,3133.5,3.19127654]
[1752621118454,5.7402,3134.0,3133.6,3.19117296]
[1752621118950,5.7402,3134.0,3133.7,3.19108907]
[1752621119149,5.7402,3134.0,3133.6,3.19116895]
[1752621119509,3.19116707,3133.7,3133.0,3.19176225]
[1752621119736,3.35036707,3133.7,3133.1,0.1592]
[1752621119940,3.19131623,3133.6,3133.1,0.1592]
[1752621120607,3.1915897,3133.3,3132.9,0.1592]
[1752621121007,3.19162517,3133.2,3132.8,0.001]
[1752621121207,4.30073292,3133.2,3132.8,0.001]
[1752621121448,3.19193079,3132.9,3132.8,0.001]
[1752621122324,3.61993079,3132.9,3132.8,0.001]
[1752621122710,0.428,3132.9,3132.8,0.001]
[1752621122936,0.9113,3133.1,3132.8,0.001]
[1752621123114,5.7342,3133.0,3132.8,0.001]
[1752621123443,3.19193079,3132.9,3132.8,0.001]
[1752621123642,3.61993079,3132.9,3132.8,0.001]
[1752621124756,5.574,3132.9,3132.8,0.001]
[1752621125070,0.1592,3133.0,3132.8,0.001]
[1752621125271,3.35084891,3133.2,3132.8,0.4559]
[1752621125485,8.92387032,3133.2,3132.8,0.4559]
[1752621126271,3.19173705,3133.1,3132.8,0.001]
[1752621126570,3.19193079,3132.9,3132.8,0.001]
[1752621127133,3.61993079,3132.9,3132.8,0.001]
[1752621128078,4.47953079,3132.9,3132.2,0.1602]
[1752621128230,6.78453022,3133.2,3131.6,0.1592]
[1752621128231,3.19293639,3132.0,3131.6,0.1592]
[1752621128427,0.8596,3131.9,3131.6,0.1592]
[1752621128631,0.1592,3131.6,3131.5,0.001]
[1752621129285,5.7292,3131.6,3131.5,0.001]
[1752621129576,4.48014352,3132.3,3131.5,3.19435781]
[1752621129728,0.1592,3131.9,3131.5,0.4559]
[1752621129931,5.568,3131.8,3131.5,0.4559]
[1752621130474,0.1592,3131.9,3131.6,3.19323718]
[1752621130657,5.568,3131.8,3131.5,0.4559]
[1752621130971,5.568,3131.8,3131.5,3.64923335]
[1752621131265,5.568,3131.8,3131.5,0.4559]
[1752621131472,5.568,3131.8,3131.5,0.001]
[1752621131769,3.19317265,3131.7,3131.5,0.001]
[1752621132482,6.61920943,3131.8,3131.5,0.001]
[1752621133467,3.19325584,3131.6,3131.5,0.001]
[1752621133752,6.61920943,3131.8,3131.5,0.001]
[1752621133988,3.62125584,3131.6,3131.5,0.001]
[1752621134147,0.66192094,3131.7,3131.5,0.001]
[1752621134347,5.7232,3131.6,3131.5,0.001]
[1752621134642,8.91645584,3131.6,3131.5,0.001]
[1752621134847,5.7232,3131.6,3131.5,0.001]
[1752621135066,8.91645584,3131.6,3131.5,0.001]
[1752621135479,5.7232,3131.6,3131.5,0.001]
[1752621135670,10.12740014,3131.6,3131.5,0.001]
[1752621135870,0.1592,3131.6,3131.5,0.001]
[1752621136072,0.1592,3131.8,3131.5,0.001]
[1752621136290,5.562,3131.7,3131.5,0.4587]
[1752621136513,5.562,3131.7,3131.5,3.65201305]
[1752621137150,0.50301435,3132.3,3131.9,3.19292875]
[1752621137376,5.7202,3132.2,3131.9,3.19285442]
[1752621137574,5.7202,3132.2,3131.8,3.1929661]
[1752621137750,5.7192,3132.2,3131.9,3.19287153]
[1752621138296,0.4345,3133.1,3132.1,3.19274608]
[1752621138483,0.1592,3132.8,3132.3,1.0539]
[1752621138781,0.1592,3132.8,3132.7,3.19213458]
[1752621138985,0.1592,3132.8,3132.6,3.19222256]
[1752621139457,0.1592,3132.8,3132.5,3.1922972]
[1752621139660,0.1592,3132.8,3132.5,0.4577]
[1752621139858,0.1592,3132.8,3132.6,3.19222161]
[1752621140460,0.1592,3132.8,3132.5,0.4577]
[1752621141355,0.1592,3132.8,3132.3,1.0539]
[1752621141356,0.1592,3132.8,3132.3,0.1592]
[1752621141559,3.62653591,3132.8,3132.0,0.8947]
[1752621141805,0.1592,3132.4,3131.9,0.1592]
[1752621142000,0.1592,3132.4,3131.9,3.35210887]
[1752621142209,3.35165071,3132.4,3131.9,0.1592]
[1752621142388,0.1592,3132.4,3131.9,0.1592]
[1752621142762,3.35168351,3132.4,3131.9,0.1592]
[1752621142963,4.00607641,3132.4,3131.9,0.1592]
[1752621143271,0.1592,3132.4,3132.3,3.19254222]
[1752621143784,0.1592,3132.7,3132.4,3.19242458]
[1752621143987,0.1592,3132.7,3132.5,3.19229193]
[1752621144182,0.1592,3132.7,3132.4,3.19239132]
[1752621144582,0.1592,3132.7,3132.1,0.6169]
[1752621144789,0.1592,3132.7,3132.3,3.19245475]
[1752621144986,0.1592,3132.7,3132.4,3.19239771]
[1752621145500,0.1592,3132.7,3132.2,3.65033079]
[1752621145697,0.1592,3132.7,3132.3,3.19254222]
[1752621146386,0.1592,3132.7,3132.1,3.35193051]
[1752621146387,3.19239079,3132.5,3132.1,0.1592]
[1752621146588,0.1592,3132.4,3131.9,3.35210664]
[1752621146798,0.1592,3132.4,3132.0,3.19282949]
[1752621147598,0.1592,3132.4,3131.9,0.1592]
[1752621147760,0.1592,3132.4,3132.2,3.19258423]
[1752621147964,0.1592,3132.4,3132.1,3.19270755]
[1752621148264,0.1592,3132.4,3132.3,3.19254222]
[1752621148470,5.547,3132.7,3132.5,3.19224705]
[1752621148814,5.7062,3132.7,3132.6,3.19223648]
[1752621149110,4.0865882,3133.6,3132.6,0.4577]
[1752621149397,31.0667,3133.5,3132.6,3.64987732]
[1752621149618,1.0667,3133.5,3132.7,0.4577]
[1752621149821,0.1962,3133.4,3132.9,3.19184815]
[1752621150107,0.1462,3133.4,3133.0,3.19178215]
[1752621150852,3.19159851,3133.3,3132.8,3.19200469]
[1752621151019,0.4345,3133.3,3133.0,3.19182261]
[1752621151322,0.1462,3133.4,3133.0,3.19182261]
[1752621151871,0.1462,3133.4,3133.0,0.4577]
[1752621152065,0.8953,3133.6,3133.5,3.19131961]
[1752621152267,6.4383,3133.6,3133.1,0.4577]
[1752621152565,6.4383,3133.6,3133.2,3.19156877]
[1752621153366,6.4383,3133.6,3133.3,3.19148635]
[1752621153569,6.4383,3133.6,3133.2,3.19158331]
[1752621154516,6.4383,3133.6,3133.1,3.19166771]
[1752621154817,7.51663,3133.6,3132.6,3.64989826]
[1752621154970,10.70788989,3133.6,3132.6,0.4577]
[1752621155170,10.70788989,3133.6,3133.0,3.19177195]
[1752621155585,7.51663,3133.6,3133.1,3.19172016]
[1752621155800,1.53913,3133.6,3132.7,3.19213458]
[1752621156010,5.538,3133.5,3132.8,0.4577]
[1752621156475,3.19142145,3133.4,3132.8,0.4577]
[1752621157286,3.19162517,3133.2,3131.7,0.8973]
[1752621157484,3.19280038,3132.1,3131.7,0.8973]
[1752621157788,3.19280038,3132.1,3131.7,1.355]
[1752621158101,3.62698045,3132.4,3131.5,0.001]
[1752621158302,3.19325584,3131.6,3131.5,0.001]
[1752621159378,0.1592,3131.8,3131.5,0.001]
[1752621159624,3.35225599,3131.8,3131.5,0.4587]
[1752621159918,3.19325584,3131.6,3131.5,0.001]
[1752621160075,0.1592,3131.8,3131.5,0.001]
[1752621160276,3.35231406,3131.8,3131.5,0.001]